fUSD/lending_fUSD_20241029
["ID","MTS","AMOUNT","RATE_DAILY","PERIOD"]
[340992140,1730220632645,-391.39918939,0.000379,2]
[340992141,1730220632655,-501.66920821,0.00037973,5]
[340992142,1730220632664,-731.13723066,0.00037989,2]
[340992143,1730220632673,-150.0,0.00037989,2]
[340992145,1730220632683,-199.999998,0.00037999,120]
[340992147,1730220632692,-5000.0,0.00037999,120]
[340992149,1730220632701,-500.0,0.00037999,15]
[340992150,1730220632711,-500.0,0.00037999,15]
[340992152,1730220632720,-500.0,0.00037999,15]
[340992154,1730220632729,-500.0,0.00037999,15]
[340992156,1730220632738,-500.0,0.00037999,15]
[340992158,1730220632748,-500.0,0.00037999,15]
[340992160,1730220632757,-500.0,0.00037999,15]
[340992162,1730220632770,-500.0,0.00037999,15]
[340992164,1730220632779,-500.0,0.00037999,15]
[340992166,1730220632788,-500.0,0.00037999,15]
[340992168,1730220632798,-500.0,0.00037999,15]
[340992170,1730220632807,-500.0,0.00037999,15]
[340992172,1730220632817,-500.0,0.00037999,15]
[340992174,1730220632826,-500.0,0.00037999,15]
[340992187,1730220632928,-500.0,0.00037999,15]
[340992191,1730220632938,-500.0,0.00037999,15]
[340992193,1730220632949,-500.0,0.00037999,15]
[340992195,1730220632958,-599.30472571,0.00037999,15]
[340992197,1730220632968,-500.0,0.00037999,15]
[340992199,1730220632977,-500.0,0.00037999,15]
[340992201,1730220632987,-500.0,0.00037999,15]
[340992204,1730220632998,-500.0,0.00037999,15]
[340992206,1730220633010,-500.0,0.00037999,15]
[340992208,1730220633019,-500.0,0.00037999,15]
[340992210,1730220633028,-500.0,0.00037999,15]
[340992212,1730220633037,-500.0,0.00037999,15]
[340992213,1730220633047,-500.0,0.00037999,15]
[340992215,1730220633056,-500.0,0.00037999,15]
[340992217,1730220633066,-500.0,0.00037999,15]
[340992219,1730220633076,-500.0,0.00037999,15]
[340992221,1730220633086,-500.0,0.00037999,15]
[340992223,1730220633096,-500.0,0.00037999,15]
[340992225,1730220633106,-500.0,0.00037999,15]
[340992227,1730220633116,-500.0,0.00037999,15]
[340992229,1730220633127,-500.0,0.00037999,15]
[340992231,1730220633137,-500.0,0.00037999,15]
[340992232,1730220633146,-565.04436,0.00037999,15]
[340992234,1730220633156,-500.0,0.00037999,15]
[340992236,1730220633166,-500.0,0.00037999,15]
[340992238,1730220633177,-500.0,0.00037999,15]
[340992240,1730220633187,-500.0,0.00037999,15]
[340992242,1730220633197,-400.0,0.00037999,15]
[340992244,1730220633206,-500.0,0.00037999,15]
[340992246,1730220633215,-500.0,0.00037999,15]
[340992248,1730220633225,-500.0,0.00037999,15]
[340992249,1730220633234,-500.0,0.00037999,15]
[340992251,1730220633243,-600.0,0.00037999,15]
[340992254,1730220633254,-375.0,0.00037999,2]
[340992255,1730220633267,-308.0,0.00038,2]
[340992257,1730220633277,-159560.47948035,0.00038,30]
[340992259,1730220633289,-9374.2067655,0.00038,30]
[340992262,1730220633300,-378.9529,0.00038,30]
[340992287,1730220638248,-13301.34632884,0.00038,30]
[340992289,1730220638259,-3755.03476905,0.00038,30]
[340992290,1730220638272,-1285.24018095,0.00038,30]
[340992291,1730220638283,-2082.2186989,0.00038,30]
[340992292,1730220638294,-3167.29915925,0.00038,30]
[340992293,1730220638312,-7011.9680206,0.00038,30]
[340992294,1730220638738,-351.32251874,0.00038,30]
[340992295,1730220638751,-848.55459538,0.00038,30]
[340992296,1730220638765,-5166.99146405,0.00038,30]
[340992297,1730220638795,-725.92,0.00038,30]
[340992298,1730220638807,-632.3904045,0.00038,30]
[340992299,1730220638818,-780.0078998,0.00038,30]
[340992332,1730220640258,-106715.03426091,0.00038,30]
[340992333,1730220640270,-703.52869604,0.00038,30]
[340992334,1730220640368,-847.54792025,0.00038,30]
[340992335,1730220640426,-444.20470155,0.00038,30]
[340992338,1730220640866,-891.81990981,0.00038,30]
[340992339,1730220640890,-634.8498179,0.00038,30]
[340992340,1730220640902,-281.6228192,0.00038,30]
[340992341,1730220640913,-1456.709504,0.00038,30]
[340992358,1730220643244,-951.30647754,0.00038,30]
[340992359,1730220643354,-2627.37237972,0.00038,30]
[340992360,1730220643533,-364.410366,0.00038,30]
[340992361,1730220643545,-14527.4,0.00038,30]
[340992362,1730220643557,-6007.06896898,0.00038,30]
[340992363,1730220643617,-280384.0173773,0.00038,30]
[340992603,1730220646259,-400.054512,0.00038,30]
[340992610,1730220646318,-8701.97322668,0.00038,30]
[340992628,1730220646474,-108905.50011579,0.00038,30]
[340992631,1730220646489,-18205.03229629,0.00038,30]
[340992633,1730220646501,-5483.9325317,0.00038,30]
[340992635,1730220646514,-727.62,0.00038,30]
[340992645,1730220646607,-6081.78799763,0.00038,30]
[340992648,1730220646618,-335.4068748,0.00038,30]
[340992651,1730220646641,-76151.97882886,0.00038,30]
[340992653,1730220646652,-329222.98213005,0.00038,30]
[340994679,1730220700912,150.0,0.00020011,2]
[340994683,1730221071887,157.33,0.00015342,2]
[340994703,1730221382052,181.04,0.00019725,2]
[340994704,1730221382172,118.96,0.00019725,2]
[340994707,1730221476993,550.0,0.00015,2]
[340994708,1730221478069,131.04,0.00017,2]
[340994709,1730221478089,468.96,0.00017,2]
[340994710,1730221479335,331.04,0.00019,2]
[340994711,1730221479355,318.96,0.00019,2]
[340994712,1730221501339,300.0,0.00019725,2]
[340994713,1730221532126,-700.0,0.00021,2]
[340994714,1730221532151,-157.33,0.000221,2]
[340994715,1730221532172,-750.0,0.00023,2]
[340994716,1730221532192,-800.0,0.00025,2]
[340994717,1730221532212,-850.0,0.00027,2]
[340994718,1730221532240,-157.33,0.00028858,2]
[340994719,1730221532263,-900.0,0.00029,2]
[340994720,1730221532283,-3570.57,0.00029,2]
[340994721,1730221532305,-230.6365,0.00029346,2]
[340994722,1730221532324,-212.895,0.00029388,2]
[340994723,1730221532343,-151.0,0.0003,120]
[340994724,1730221532362,-4102.5590545,0.0003,2]
[340994725,1730221532382,-950.0,0.00031,2]
[340994726,1730221532400,-200.0,0.00031599,2]
[340994727,1730221532420,-1000.0,0.00033,2]
[340994728,1730221532439,-250.0,0.00034407,2]
[340994729,1730221532459,-339.214607,0.00034951,2]
[340994730,1730221532483,-1050.0,0.00035,2]
[340994731,1730221532506,-409.72,0.00035127,2]
[340994732,1730221532526,-157.33,0.00035616,2]
[340994733,1730221532550,-200.0,0.00036362,2]
[340994734,1730221532569,-444.08,0.00036433,2]
[340994735,1730221532588,-372.68,0.00036553,2]
[340994736,1730221532608,-150.0,0.00036671,7]
[340994737,1730221532628,-170.223,0.00036671,2]
[340994738,1730221532649,-21855.51,0.00036677,2]
[340994739,1730221532669,-1000.0,0.00036727,2]
[340994740,1730221532689,-500.0,0.00036925,2]
[340994741,1730221532709,-209.44621075,0.00037,2]
[340994742,1730221532728,-1100.0,0.00037,2]
[340994743,1730221532749,-250.0,0.00037012,120]
[340994744,1730221532769,-170.3,0.00037058,120]
[340994745,1730221532789,-158.7,0.00037264,120]
[340994746,1730221532818,-409.72,0.00037391,2]
[340994747,1730221532838,-230.6365,0.00037614,2]
[340994748,1730221532858,-150.0,0.00037733,2]
[340994749,1730221532879,-150.0,0.00037765,2]
[340994750,1730221532899,-151.65,0.00037777,2]
[340994751,1730221532920,-150.0,0.00037779,2]
[340994752,1730221532942,-767.021,0.00037782,49]
[340994753,1730221532962,-1282.3176,0.000378,2]
[340994754,1730221532985,-150.0,0.00037836,2]
[340994755,1730221533008,-150.0,0.00037838,2]
[340994756,1730221533030,-150.0,0.00037871,2]
[340994757,1730221533052,-449.53015758,0.00037899,15]
[340994758,1730221533074,-16776.83456503,0.000379,2]
[340994759,1730221554094,-250.0,0.00037021,120]
[340994760,1730221554114,-20975.22653497,0.000379,2]
[340994761,1730221554134,-215.5287,0.000379,2]
[340994762,1730221554160,-1000.0,0.000379,2]
[340994763,1730221554180,-500.0,0.000379,2]
[340994764,1730221554201,-7300.6357,0.000379,2]
[340994765,1730221554222,-2013.3819,0.000379,2]
[340994766,1730221554241,-2500.0,0.000379,2]
[340994767,1730221554260,-361.6792,0.000379,2]
[340994768,1730221554279,-8257.09085135,0.000379,2]
[340994769,1730221561489,181.04,0.00019725,2]
[340994770,1730221561510,118.96,0.00019725,2]
[340994771,1730221594092,-420.0,0.00021484,2]
[340994772,1730221594113,-587.0,0.00023401,2]
[340994773,1730221594135,-443.0,0.00025488,2]
[340994774,1730221594160,-151.0,0.0003,120]
[340994775,1730221594181,-158.7,0.00037225,120]
[340994777,1730221594203,-150.0,0.00037725,2]
[340994778,1730221594226,-227.6740055,0.00037732,2]
[340994779,1730221594248,-150.0,0.00037762,2]
[340994780,1730221594267,-655.97493251,0.000378,2]
[340994781,1730221597107,155.82,0.00015342,2]
[340994784,1730221761100,-180.07,0.00029601,2]
[340994787,1730221800359,150.0,0.00017605,2]
[340994788,1730221803178,150.0,0.00029601,2]
[340994824,1730221831455,-409.82,0.00035041,2]
[340994826,1730221831465,-1180.4514584,0.00036413,2]
[340994832,1730221831516,-188.70746044,0.00036413,2]
[340994834,1730221831525,-1000.0,0.00036513,2]
[340994836,1730221831535,-150.0,0.00036524,7]
[340994838,1730221831544,-168.8,0.00036535,2]
[340994839,1730221831553,-23900.0,0.00036544,2]
[340994840,1730221831562,-1705.2199,0.00036577,7]
[340994841,1730221831571,-564.86,0.00036913,2]
[340994842,1730221831580,-171.07,0.00036922,120]
[340994843,1730221831589,-564.86,0.00036923,2]
[340994844,1730221831598,-564.86,0.00036933,2]
[340994845,1730221831607,-564.86,0.00036942,2]
[340994846,1730221831728,-564.86,0.00036952,2]
[340994847,1730221831737,-564.86,0.00036962,2]
[340994848,1730221831746,-564.86,0.00036971,2]
[340994849,1730221831757,-564.86,0.00036981,2]
[340994850,1730221831766,-564.86,0.00036991,2]
[340994851,1730221831775,-564.86,0.00037001,2]
[340994852,1730221831784,-564.86,0.0003701,2]
[340994853,1730221831793,-564.86,0.0003702,2]
[340994854,1730221831802,-564.86,0.0003703,2]
[340994855,1730221831811,-564.86,0.0003704,2]
[340994856,1730221831820,-564.86,0.00037049,2]
[340994857,1730221831829,-564.86,0.00037059,2]
[340994858,1730221831839,-564.86,0.00037069,2]
[340994859,1730221831848,-300.0,0.00037078,2]
[340994860,1730221831858,-564.86,0.00037078,2]
[340994861,1730221831866,-564.86,0.00037088,2]
[340994862,1730221831875,-564.86,0.00037098,2]
[340994863,1730221831884,-409.82,0.00037305,2]
[340994864,1730221831893,-150.0,0.00037718,2]
[340994865,1730221831903,-150.0,0.00037718,2]
[340994866,1730221831912,-150.0,0.00037719,2]
[340994867,1730221831921,-150.0,0.00037728,2]
[340994868,1730221831931,-150.0,0.00037736,2]
[340994869,1730221831940,-150.0,0.00037748,2]
[340994870,1730221831949,-150.0,0.00037755,2]
[340994871,1730221831959,-150.0,0.00037766,2]
[340994872,1730221831970,-150.0,0.0003778,2]
[340994873,1730221831979,-150.0,0.00037788,2]
[340994874,1730221831988,-150.0,0.0003779,2]
[340994875,1730221831997,-415.74656749,0.000378,2]
[340994877,1730221832009,-3883.7576,0.000378,2]
[340994879,1730221832018,-500.0,0.000378,2]
[340994880,1730221832027,-532.60293861,0.000378,15]
[340994881,1730221832036,-178.1073,0.000378,2]
[340994882,1730221832046,-1092.8039,0.000378,2]
[340994883,1730221832055,-31297.2344,0.000378,2]
[340994884,1730221832064,-12561.7427,0.000378,2]
[340994885,1730221832074,-2500.0,0.000378,2]
[340994886,1730221832083,-150.0,0.00037804,2]
[340994887,1730221832093,-150.0,0.00037807,2]
[340994888,1730221832104,-532.60293854,0.00037811,15]
[340994889,1730221832114,-150.0,0.0003782,2]
[340994890,1730221832124,-532.60293854,0.00037822,15]
[340994891,1730221832133,-150.0,0.00037824,2]
[340994892,1730221832143,-532.60293854,0.00037833,15]
[340994893,1730221832153,-150.0,0.00037836,2]
[340994894,1730221832163,-532.60293854,0.00037844,15]
[340994895,1730221832172,-150.0,0.00037846,2]
[340994896,1730221832181,-532.60293854,0.00037856,15]
[340994897,1730221832192,-532.60293854,0.00037867,15]
[340994898,1730221832202,-503.99294869,0.00037873,5]
[340994899,1730221832212,-532.60293854,0.00037878,15]
[340994900,1730221832221,-150.0,0.00037879,2]
[340994901,1730221832231,-150.0,0.00037881,2]
[340994902,1730221832244,-150.0,0.00037884,2]
[340994903,1730221832255,-532.60293854,0.00037889,15]
[340994904,1730221832264,-150.0,0.0003789,2]
[340994905,1730221832273,-150.0,0.00037898,2]
[340994906,1730221832282,-314.6711103,0.00037899,15]
[340994907,1730221832292,-91742.90914865,0.000379,2]
[340994908,1730221832301,-11680.5009,0.000379,2]
[340994909,1730221832310,-245000.0,0.000379,2]
[340994910,1730221832319,-26200.9451,0.000379,2]
[340994911,1730221832329,-1000.0,0.000379,2]
[340994912,1730221832338,-532.60293854,0.000379,15]
[340994913,1730221832347,-3104.63432324,0.000379,2]
[340994914,1730221832358,-169.69717311,0.000379,2]
[340994915,1730221832367,-150.0,0.00037905,2]
[340994916,1730221832377,-150.0,0.0003792,2]
[340994917,1730221832386,-150.0,0.00037928,2]
[340994918,1730221832396,-150.0,0.00037931,2]
[340994919,1730221832405,-150.0,0.0003794,2]
[340994920,1730221832414,-150.0,0.00037947,2]
[340994921,1730221832422,-150.0,0.00037962,2]
[340994922,1730221832432,-229.96062408,0.00037969,2]
[340994923,1730221832441,-150.0,0.00037969,2]
[340994924,1730221832450,-150.0,0.00037972,2]
[340994925,1730221832459,-150.0,0.00037978,2]
[340994926,1730221832469,-161.53181245,0.00037984,2]
[340994927,1730221832478,-150.0,0.00037987,2]
[340994928,1730221832488,-5743.3868393,0.00037994,2]
[340994929,1730221832497,-2642.8206679,0.00037995,2]
[340994930,1730221832507,-1218.86615585,0.00037999,30]
[340994931,1730221832517,-1218.86615584,0.00037999,30]
[340994932,1730221832526,-518.42877985,0.00037999,2]
[340994933,1730221832535,-188.89974189,0.00037999,15]
[340994934,1730221832545,-500.0,0.00037999,15]
[340994935,1730221832554,-234.23259071,0.00037999,15]
[340994936,1730221832563,-63836.04796605,0.00038,30]
[340994937,1730221832575,-365.08371,0.00038,30]
[340994938,1730221832586,-3638.35,0.00038,30]
[340994939,1730221832597,-633.79664741,0.00038,30]
[340994940,1730221832611,-858.03874231,0.00038,30]
[340994941,1730221832625,-2245.50591418,0.00038,30]
[340994942,1730221832636,-228534.92656808,0.00038,30]
[340994943,1730221832647,-88381.19998349,0.00038,30]
[340994944,1730221832658,-153584.19541679,0.00038,30]
[340994945,1730221832694,-279.69657276,0.00038,30]
[340994946,1730221832705,-1075.43,0.00038,30]
[340994947,1730221832716,-1674.29978993,0.00038,30]
[340994948,1730221833590,300.0,0.0002805,30]
[340994949,1730221835941,193.243,0.00028804,2]
[340994967,1730221837488,-17370.8146464,0.00038,30]
[340994968,1730221837501,-240271.74710008,0.00038,30]
[340994969,1730221837545,-1026.83700667,0.00038,30]
[340994970,1730221837605,-1232.32048361,0.00038,30]
[340994971,1730221838130,-127839.29105581,0.00038,30]
[340995082,1730221839761,-273.75849715,0.00037757,2]
[340995084,1730221839771,-217.9314,0.000379,2]
[340995086,1730221839780,-708.02685811,0.00038,30]
[340995358,1730221842694,-6251.795014,0.00037995,2]
[340995360,1730221842703,-60049.20253328,0.00038,30]
[340995362,1730221842723,-641.04428357,0.00038,30]
[340995374,1730221842835,-5601.84460299,0.00038,30]
[340995376,1730221842847,-309.01859729,0.00038,30]
[340995378,1730221842863,-18982.28973114,0.00038,30]
[340995631,1730221845488,-91017.154616,0.00038,30]
[340995632,1730221845500,-13944.78723464,0.00038,30]
[340995633,1730221845546,-661.46020003,0.00038,30]
[340995634,1730221845607,-46774.0545853,0.00038,30]
[340995646,1730221845721,-728.14,0.00038,30]
[340995648,1730221845733,-72813.78054909,0.00038,30]
[340995650,1730221845747,-2126.1035,0.00038,30]
[340995668,1730221862536,150.0,0.00017605,2]
[340995674,1730222105452,152.35,0.00015342,2]
[340995699,1730222644589,171.22,0.00015342,2]
[340995705,1730222707976,201.65,0.00016,2]
[340995706,1730222707998,800.0,0.00016,2]
[340995707,1730222708021,800.0,0.00016,2]
[340995708,1730222708043,500.0,0.00016,2]
[340995709,1730222708064,440.0,0.00016,2]
[340995710,1730222708093,438397.12082535,0.00016,2]
[340995712,1730222737100,-180.07,0.00028818,2]
[340995713,1730222737120,-3269.87187599,0.000293,2]
[340995714,1730222737140,-841.0,0.000294,3]
[340995715,1730222737160,-3269.87187598,0.000296,2]
[340995716,1730222737181,-2722.17631114,0.000299,2]
[340995718,1730222859116,327.84697233,0.00018,2]
[340995720,1730222878649,4202.73555832,0.00013,2]
[340995721,1730222878720,24109.98357994,0.00012579,2]
[340995722,1730222882507,10938.26824488,0.0001,2]
[340995723,1730222885750,487564.53712093,0.00015,2]
[340995739,1730222964088,-452.88001317,0.0002425,2]
[340995740,1730222964107,-1422.96255013,0.0002485,2]
[340995741,1730222964126,-1013.14080175,0.0002495,2]
[340995742,1730222964146,-151.0,0.0003,120]
[340995743,1730222964167,-3730.27055298,0.0003,2]
[340995756,1730223031550,-371.63241637,0.0003,2]
[340995757,1730223031667,-1134.61378065,0.0003,2]
[340995758,1730223031677,-994.64,0.0003,2]
[340995759,1730223031686,-2607.0,0.0003,7]
[340995760,1730223031696,-410.53,0.00034295,2]
[340995761,1730223031705,-853.311,0.0003575,43]
[340995762,1730223031714,-1370.46,0.0003575,2]
[340995763,1730223031724,-365.47,0.0003608,2]
[340995764,1730223031733,-1123.82901935,0.0003608,2]
[340995765,1730223031840,-2131.34098065,0.0003608,2]
[340995766,1730223031849,-329.67,0.00036125,2]
[340995767,1730223031858,-250.0,0.00036125,2]
[340995768,1730223031867,-150.0,0.00036154,7]
[340995769,1730223031877,-7132.39869107,0.00036157,2]
[340995791,1730223037660,-3646.4283,0.00036157,2]
[340995792,1730223037774,-383.05758363,0.00036157,2]
[340995793,1730223037853,-299.79822454,0.00036157,2]
[340995794,1730223037864,-12438.31720076,0.00036157,2]
[340995795,1730223037873,-300.81,0.00036169,2]
[340995796,1730223037882,-250.0,0.00036263,120]
[340995797,1730223037891,-150.0,0.00036274,2]
[340995798,1730223037900,-228.54579882,0.00036275,2]
[340995799,1730223037911,-21.45420118,0.00036275,2]
[340995800,1730223037920,-158.7,0.00036351,120]
[340995801,1730223037929,-200.0,0.00036468,2]
[340995802,1730223037938,-171.83,0.00036515,120]
[340995803,1730223037947,-410.53,0.00036559,2]
[340995804,1730223037956,-300.0,0.000371,13]
[340995805,1730223037967,-600.0,0.000372,13]
[340995806,1730223037980,-686.0,0.000372,7]
[340995807,1730223037990,-1000.0,0.000373,13]
[340995808,1730223037999,-150.0,0.00037374,2]
[340995809,1730223038012,-1300.0,0.000374,13]
[340995810,1730223038022,-1170.0,0.000374,7]
[340995811,1730223038032,-150.0,0.00037498,2]
[340995812,1730223038042,-1700.0,0.000375,13]
[340995813,1730223038053,-150.0,0.00037512,2]
[340995814,1730223038062,-150.0,0.00037522,2]
[340995815,1730223038071,-300.0,0.000376,13]
[340995816,1730223038081,-17361.1973,0.000377,2]
[340995817,1730223038090,-1706.1298,0.000377,2]
[340995818,1730223038099,-4661.5712,0.000377,2]
[340995819,1730223038108,-18410.6081,0.000377,2]
[340995821,1730223038118,-2692.65,0.000377,2]
[340995823,1730223038129,-11568.7841,0.000377,2]
[340995825,1730223038139,-300.0,0.000377,13]
[340995826,1730223038148,-187.81297523,0.000377,2]
[340995827,1730223038157,-2500.0,0.000377,2]
[340995828,1730223038166,-150.0,0.00037737,2]
[340995830,1730223038175,-150.0,0.00037744,2]
[340995832,1730223038184,-501.66920821,0.00037773,5]
[340995834,1730223038193,-150.0,0.00037788,2]
[340995836,1730223038204,-478.0002,0.000378,2]
[340995838,1730223038216,-77113.30191533,0.000378,2]
[340995845,1730223042772,-9655.04558692,0.000378,2]
[340995846,1730223042927,-3403.20962603,0.000378,2]
[340995847,1730223042938,-5998.26317875,0.000378,2]
[340995848,1730223042982,-2180.82,0.000378,2]
[340995849,1730223042994,-31023.34609297,0.000378,2]
[340995850,1730223043003,-7107.00844598,0.000378,2]
[340995851,1730223043015,-57472.95325402,0.000378,2]
[340995852,1730223043024,-9214.2656,0.000378,2]
[340995853,1730223043034,-1000.0,0.000378,2]
[340995854,1730223043044,-3505.2898,0.000378,2]
[340995855,1730223043055,-300.0,0.000378,13]
[340995856,1730223043065,-187.81297521,0.000378,2]
[340995857,1730223043074,-150.0,0.00037801,2]
[340995858,1730223043083,-150.0,0.00037847,2]
[340995859,1730223043092,-150.0,0.00037873,2]
[340995860,1730223043101,-15814.6785,0.000379,2]
[340995861,1730223043110,-300.0,0.000379,13]
[340995862,1730223043120,-3025.6915,0.000379,120]
[340995863,1730223043129,-498.35271108,0.000379,2]
[340995864,1730223043138,-187.81297521,0.000379,2]
[340995865,1730223043147,-11575.24534832,0.000379,2]
[340995866,1730223043156,-731.13723066,0.00037999,2]
[340995867,1730223043165,-5199.999999,0.00037999,120]
[340995868,1730223043174,-500.0,0.00037999,15]
[340995869,1730223043183,-500.0,0.00037999,15]
[340995870,1730223043193,-500.0,0.00037999,15]
[340995871,1730223043202,-500.0,0.00037999,15]
[340995872,1730223043211,-500.0,0.00037999,15]
[340995873,1730223043224,-500.0,0.00037999,15]
[340995874,1730223043234,-500.0,0.00037999,15]
[340995875,1730223043243,-500.0,0.00037999,15]
[340995876,1730223043252,-500.0,0.00037999,15]
[340995877,1730223043262,-500.0,0.00037999,15]
[340995878,1730223043271,-500.0,0.00037999,15]
[340995879,1730223043280,-500.0,0.00037999,15]
[340995880,1730223043290,-500.0,0.00037999,15]
[340995881,1730223043299,-500.0,0.00037999,15]
[340995882,1730223043309,-500.0,0.00037999,15]
[340995883,1730223043318,-500.0,0.00037999,15]
[340995884,1730223043327,-500.0,0.00037999,15]
[340995885,1730223043337,-500.0,0.00037999,15]
[340995886,1730223043347,-500.0,0.00037999,15]
[340995887,1730223043356,-500.0,0.00037999,15]
[340995888,1730223043365,-500.0,0.00037999,15]
[340995889,1730223043374,-500.0,0.00037999,15]
[340995890,1730223043383,-500.0,0.00037999,15]
[340995891,1730223043393,-500.0,0.00037999,15]
[340995892,1730223043403,-500.0,0.00037999,15]
[340995893,1730223043412,-500.0,0.00037999,15]
[340995894,1730223043421,-500.0,0.00037999,15]
[340995895,1730223043431,-500.0,0.00037999,15]
[340995896,1730223043440,-500.0,0.00037999,15]
[340995897,1730223043450,-500.0,0.00037999,15]
[340995898,1730223043461,-565.04436,0.00037999,15]
[340995899,1730223043475,-500.0,0.00037999,15]
[340995900,1730223043485,-500.0,0.00037999,15]
[340995901,1730223043495,-500.0,0.00037999,15]
[340995902,1730223043505,-500.0,0.00037999,15]
[340995903,1730223043515,-500.0,0.00037999,15]
[340995904,1730223043524,-500.0,0.00037999,15]
[340995905,1730223043534,-500.0,0.00037999,15]
[340995906,1730223043544,-500.0,0.00037999,15]
[340995907,1730223043553,-500.0,0.00037999,15]
[340995908,1730223043563,-369.513308,0.00037999,15]
[340995909,1730223043572,-500.0,0.00037999,15]
[340995910,1730223043583,-500.0,0.00037999,15]
[340995911,1730223043593,-229.79141771,0.00037999,15]
[340995912,1730223043602,-500.0,0.00037999,15]
[340995913,1730223043612,-500.0,0.00037999,15]
[340995914,1730223043621,-500.0,0.00037999,15]
[340995915,1730223043631,-500.0,0.00037999,15]
[340995916,1730223043640,-375.0,0.00037999,2]
[340995917,1730223043650,-116278.08872079,0.00038,30]
[340995918,1730223043696,-5997.43920006,0.00038,30]
[340995923,1730223045650,-3640.3342061,0.00038,30]
[340995924,1730223045662,-26713.47049163,0.00038,30]
[340995925,1730223045709,-36410.82999333,0.00038,30]
[340995926,1730223046184,-44328.79947785,0.00038,30]
[340995927,1730223046197,-1435753.61759196,0.00038,30]
[340995928,1730223046209,-4618.19760944,0.00038,30]
[340995933,1730223130420,156.84,0.00015342,2]
[340995945,1730223291567,550.0,0.00015,2]
[340995953,1730223640816,154.7,0.00015342,2]
[340995958,1730223705571,7831.21881297,0.0002401,120]
[340995959,1730223752116,491.0,0.00024,60]
[340995962,1730223855927,150.0,0.00017605,2]
[340995963,1730223878313,150.0,0.0002001,2]
[340995968,1730224161139,-246.0,0.000296,3]
[340996007,1730224231963,-419.78,0.00034314,2]
[340996008,1730224231972,-819.237,0.00035741,43]
[340996009,1730224231983,-251.03035225,0.00036157,2]
[340996010,1730224231992,-157.0,0.00036157,2]
[340996011,1730224232002,-3927.64473015,0.00036175,2]
[340996012,1730224232014,-19972.35526985,0.00036175,2]
[340996013,1730224232023,-250.0,0.00036267,2]
[340996014,1730224232033,-250.0,0.00036267,2]
[340996015,1730224232043,-250.0,0.00036293,120]
[340996016,1730224232052,-582.79,0.00036297,2]
[340996017,1730224232062,-263.85,0.00036298,2]
[340996018,1730224232072,-1388.39,0.00036398,2]
[340996019,1730224232081,-821.62,0.00036398,2]
[340996020,1730224232091,-158.7,0.0003641,120]
[340996021,1730224232101,-419.78,0.00036577,2]
[340996022,1730224232110,-171.07,0.00036583,120]
[340996023,1730224232119,-1000.0,0.00036929,2]
[340996024,1730224232130,-400.0,0.000371,13]
[340996025,1730224232139,-900.0,0.000372,13]
[340996026,1730224232148,-1400.0,0.000373,13]
[340996027,1730224232158,-1900.0,0.000374,13]
[340996028,1730224232167,-163.12,0.00037408,2]
[340996030,1730224232176,-2400.0,0.000375,13]